fUST/lending_fUST_20240912
["ID","MTS","AMOUNT","RATE_DAILY","PERIOD"]
[337814964,1726129858726,-533.58,0.00017808,2]
[337814965,1726129858735,-500.0,0.00017808,2]
[337814966,1726129858744,-500.0,0.00017808,2]
[337814967,1726129858754,-500.0,0.00017808,2]
[337814968,1726129858764,-500.0,0.00017808,2]
[337814969,1726129858773,-263.06553229,0.00017808,2]
[337814970,1726129858783,-500.0,0.00017808,2]
[337814971,1726129858801,-743.98,0.00017808,2]
[337814972,1726129858810,-500.0,0.00017808,2]
[337814973,1726129858820,-500.0,0.00017808,2]
[337814974,1726129858829,-500.0,0.00017808,2]
[337814975,1726129858839,-500.0,0.00017808,2]
[337814976,1726129858848,-500.0,0.00017808,2]
[337814977,1726129858858,-732.61,0.00017808,2]
[337814978,1726129858868,-500.0,0.00017808,2]
[337814979,1726129858878,-615.65,0.00017808,2]
[337814980,1726129858887,-500.0,0.00017808,2]
[337814981,1726129858898,-500.0,0.00017808,2]
[337814982,1726129858907,-759.0,0.00017808,2]
[337814983,1726129858917,-661.83,0.00017808,2]
[337814984,1726129858927,-5197.27,0.00017808,2]
[337814985,1726129858936,-500.0,0.00017808,2]
[337814986,1726129858946,-808.7,0.00017808,2]
[337814987,1726129858955,-500.0,0.00017808,2]
[337814988,1726129858965,-633.45,0.00017808,2]
[337814989,1726129858975,-500.0,0.00017808,2]
[337814990,1726129858984,-626.68,0.00017808,2]
[337814991,1726129858994,-501.14,0.00017808,2]
[337814992,1726129859003,-284.23917197,0.00017808,2]
[337814993,1726129859013,-705.3,0.00017808,2]
[337814994,1726129859023,-699.17,0.00017808,2]
[337814995,1726129859032,-968.51,0.00017808,2]
[337814996,1726129859045,-624.32,0.00017808,2]
[337814997,1726129859055,-500.0,0.00017808,2]
[337814998,1726129859065,-500.0,0.00017808,2]
[337814999,1726129859075,-606.50059161,0.00017808,2]
[337815000,1726129859085,-500.0,0.00017808,2]
[337815001,1726129859095,-500.0,0.00017808,2]
[337815002,1726129859106,-500.0,0.00017808,2]
[337815003,1726129859115,-620.31,0.00017808,2]
[337815004,1726129859125,-500.0,0.00017808,2]
[337815005,1726129859135,-500.0,0.00017808,2]
[337815006,1726129859144,-500.0,0.00017808,2]
[337815007,1726129859154,-1259.4,0.00017808,2]
[337815008,1726129859163,-822.05,0.00017808,2]
[337815009,1726129859173,-696.65,0.00017808,2]
[337815010,1726129859184,-500.0,0.00017808,2]
[337815011,1726129859194,-8326.4,0.00017808,2]
[337815012,1726129859206,-555.33,0.00017808,2]
[337815013,1726129859216,-500.0,0.00017808,2]
[337815014,1726129859228,-533.89,0.00017808,2]
[337815015,1726129859239,-500.0,0.00017808,2]
[337815016,1726129859248,-638.26,0.00017808,2]
[337815017,1726129859258,-1592.26,0.00017808,2]
[337815018,1726129859268,-771.86,0.00017808,2]
[337815019,1726129859277,-500.0,0.00017808,2]
[337815020,1726129859288,-427.58,0.00017808,2]
[337815021,1726129859298,-765.94,0.00017808,2]
[337815022,1726129859307,-789.07,0.00017808,2]
[337815023,1726129859317,-749.38,0.00017808,2]
[337815024,1726129859326,-500.0,0.00017808,2]
[337815025,1726129859335,-819.89,0.00017808,2]
[337815026,1726129859345,-801.27,0.00017808,2]
[337815027,1726129859355,-500.0,0.00017808,2]
[337815028,1726129859365,-785.06,0.00017808,2]
[337815029,1726129859374,-500.0,0.00017808,2]
[337815030,1726129859383,-1535.88,0.00017808,2]
[337815031,1726129859393,-645.24,0.00017808,2]
[337815032,1726129859403,-500.0,0.00017808,2]
[337815033,1726129859412,-553.59,0.00017808,2]
[337815034,1726129859422,-785.57,0.00017808,2]
[337815035,1726129859432,-1020.67,0.00017808,2]
[337815036,1726129859441,-5335.8,0.00017808,2]
[337815037,1726129859451,-6452.00536146,0.00017808,2]
[337815038,1726129859885,-500.0,0.00016438,2]
[337815039,1726129859895,-500.0,0.00016438,2]
[337815040,1726129859904,-498.22107913,0.00016438,2]
[337815041,1726129859914,-500.0,0.00016438,2]
[337815042,1726129859924,-500.0,0.00016712,2]
[337815043,1726129859933,-500.0,0.00016712,2]
[337815044,1726129859944,-500.0,0.00016712,2]
[337815045,1726129859953,-3362.28463854,0.00017808,2]
[337815046,1726129859963,-643.99,0.00017808,2]
[337815047,1726129859972,-601.27,0.00017808,2]
[337815048,1726129859982,-728.16,0.00017808,2]
[337815049,1726129859992,-1101.59,0.00017808,2]
[337815050,1726129860003,-500.0,0.00017808,2]
[337815051,1726129860013,-849.41,0.00017808,2]
[337815052,1726129860023,-4352.8,0.00017808,2]
[337815053,1726129860033,-1672.11,0.00017808,2]
[337815054,1726129860214,-500.0,0.00017808,2]
[337815055,1726129860234,-873.42,0.00017808,2]
[337815056,1726129860244,-665.65,0.00017808,2]
[337815057,1726129860253,-500.0,0.00017808,2]
[337815058,1726129860263,-500.0,0.00017808,2]
[337815059,1726129860273,-189.96,0.00017808,2]
[337815060,1726129860283,-500.0,0.00017808,2]
[337815061,1726129860294,-500.0,0.00017808,2]
[337815062,1726129860304,-500.04927649,0.00017842,2]
[337815063,1726129860314,-1002.97725022,0.00017842,2]
[337815064,1726129860324,-501.51600517,0.00017842,2]
[337815065,1726129860334,-500.0,0.00017842,2]
[337815066,1726129860343,-1000.0,0.00017842,2]
[337815067,1726129860352,-1000.0,0.00017842,2]
[337815068,1726129860362,-1000.0,0.00017842,2]
[337815069,1726129860371,-1000.0,0.00017842,2]
[337815070,1726129860381,-150.112233,0.00018,2]
[337815071,1726129860391,-1000.0,0.00018042,2]
[337815072,1726129860401,-1000.0,0.00018042,2]
[337815073,1726129860410,-501.0719254,0.00018042,2]
[337815074,1726129860420,-420.0,0.00018081,2]
[337815075,1726129860429,-500.0,0.00018082,2]
[337815076,1726129860439,-500.0,0.00018082,2]
[337815077,1726129860449,-500.0,0.00018082,2]
[337815078,1726129860459,-500.0,0.00018082,2]
[337815079,1726129860468,-500.0,0.00018082,2]
[337815080,1726129860478,-500.0,0.00018082,2]
[337815081,1726129860489,-421.5994179,0.00018082,2]
[337815082,1726129860500,-500.0,0.00018082,2]
[337815083,1726129860510,-500.0,0.00018082,2]
[337815084,1726129860521,-500.0,0.00018082,2]
[337815085,1726129860530,-500.0,0.00018082,2]
[337815086,1726129860542,-500.0,0.00018082,2]
[337815087,1726129860552,-500.0,0.00018082,2]
[337815088,1726129860561,-604.9,0.00018082,2]
[337815089,1726129860571,-500.0,0.00018082,2]
[337815090,1726129860581,-640.91,0.00018082,2]
[337815091,1726129860591,-500.0,0.00018082,2]
[337815092,1726129860600,-333.38822554,0.00018082,2]
[337815093,1726129860609,-216.69527669,0.00018082,2]
[337815094,1726129860618,-500.0,0.00018082,2]
[337815095,1726129860628,-500.0,0.00018082,2]
[337815096,1726129860637,-500.0,0.00018082,2]
[337815097,1726129860647,-500.0,0.00018082,2]
[337815098,1726129860657,-457.70879957,0.00018082,2]
[337815099,1726129860670,-500.0,0.00018082,2]
[337815100,1726129860679,-516.13,0.00018082,2]
[337815101,1726129860689,-500.0,0.00018082,2]
[337815102,1726129860699,-500.0,0.00018082,2]
[337815103,1726129860710,-632.03,0.00018082,2]
[337815104,1726129860720,-500.0,0.00018082,2]
[337815105,1726129860730,-621.75,0.00018082,2]
[337815106,1726129860739,-500.0,0.00018082,2]
[337815107,1726129860749,-500.0,0.00018082,2]
[337815108,1726129860759,-500.0,0.00018082,2]
[337815109,1726129860769,-526.44,0.00018082,2]
[337815110,1726129860779,-500.0,0.00018082,2]
[337815111,1726129860790,-500.0,0.00018082,2]
[337815112,1726129860800,-500.0,0.00018082,2]
[337815113,1726129860809,-593.12453916,0.00018082,2]
[337815114,1726129860818,-533.58,0.00018082,2]
[337815115,1726129860828,-500.0,0.00018082,2]
[337815116,1726129860837,-500.0,0.00018082,2]
[337815117,1726129860847,-500.0,0.00018082,2]
[337815118,1726129860858,-500.0,0.00018082,2]
[337815119,1726129860868,-500.0,0.00018082,2]
[337815120,1726129860878,-743.98,0.00018082,2]
[337815121,1726129860888,-191.48983369,0.00018082,2]
[337815122,1726129860897,-500.0,0.00018082,2]
[337815123,1726129860907,-500.0,0.00018082,2]
[337815124,1726129860917,-500.0,0.00018082,2]
[337815125,1726129860925,-500.0,0.00018082,2]
[337815126,1726129860935,-732.61,0.00018082,2]
[337815127,1726129860944,-500.0,0.00018082,2]
[337815128,1726129860954,-615.65,0.00018082,2]
[337815129,1726129860964,-500.0,0.00018082,2]
[337815130,1726129860976,-759.0,0.00018082,2]
[337815131,1726129860985,-661.83,0.00018082,2]
[337815132,1726129860994,-5197.27,0.00018082,2]
[337815133,1726129861004,-500.0,0.00018082,2]
[337815134,1726129861014,-808.7,0.00018082,2]
[337815135,1726129861024,-500.0,0.00018082,2]
[337815136,1726129861034,-633.45,0.00018082,2]
[337815137,1726129861047,-500.0,0.00018082,2]
[337815138,1726129861057,-626.68,0.00018082,2]
[337815139,1726129861068,-501.14,0.00018082,2]
[337815140,1726129861078,-705.3,0.00018082,2]
[337815141,1726129861089,-699.17,0.00018082,2]
[337815142,1726129861100,-968.51,0.00018082,2]
[337815143,1726129861109,-624.32,0.00018082,2]
[337815144,1726129861119,-500.0,0.00018082,2]
[337815145,1726129861128,-500.0,0.00018082,2]
[337815146,1726129861138,-562.08090998,0.00018082,2]
[337815147,1726129861148,-500.0,0.00018082,2]
[337815148,1726129861158,-500.0,0.00018082,2]
[337815149,1726129861167,-620.31,0.00018082,2]
[337815150,1726129861177,-500.0,0.00018082,2]
[337815151,1726129861186,-500.0,0.00018082,2]
[337815152,1726129861196,-500.0,0.00018082,2]
[337815153,1726129861205,-1259.4,0.00018082,2]
[337815154,1726129861215,-822.05,0.00018082,2]
[337815155,1726129861225,-696.65,0.00018082,2]
[337815156,1726129861235,-500.0,0.00018082,2]
[337815157,1726129861244,-7932.33250504,0.00018082,2]
[337815160,1726130060824,250.0,0.00015718,2]
[337815161,1726130061038,250.0,0.00015761,2]
[337815162,1726130061233,250.0,0.00015804,2]
[337815163,1726130061439,250.0,0.00015847,2]
[337815164,1726130061868,250.0,0.0001589,2]
[337815165,1726130062301,250.0,0.00015934,2]
[337815166,1726130062512,250.0,0.00015977,2]
[337815167,1726130199245,24900.0,0.00015294,2]
[337815168,1726130445987,20000.0,0.00028,120]
[337815171,1726130730114,-250.0,0.0001602,2]
[337815172,1726130730137,-250.0,0.00016063,2]
[337815173,1726130730159,-250.0,0.00016106,2]
[337815174,1726130730180,-250.0,0.00016149,2]
[337815175,1726130730201,-168.34332268,0.00016178,2]
[337815176,1726130730222,-78.11782126,0.00016192,2]
[337815177,1726130756114,-171.88217874,0.00016192,2]
[337815178,1726130756138,-188.31523528,0.00016235,2]
[337815179,1726130782991,250.0,0.00015422,2]
[337815180,1726130783204,250.0,0.00015465,2]
[337815181,1726130783407,250.0,0.00015507,2]
[337815182,1726130783626,250.0,0.00015549,2]
[337815183,1726130784068,250.0,0.00015591,2]
[337815184,1726130784498,250.0,0.00015634,2]
[337815185,1726130784549,250.0,0.00015676,2]
[337815186,1726130784941,250.0,0.00015718,2]
[337815187,1726130785151,250.0,0.00015761,2]
[337815188,1726130785373,250.0,0.00015803,2]
[337815189,1726130785585,250.0,0.00015845,2]
[337815190,1726130785831,250.0,0.00015888,2]
[337815191,1726130786232,250.0,0.0001593,2]
[337815192,1726130786501,250.0,0.00015972,2]
[337815193,1726130829104,-250.0,0.00016014,2]
[337815194,1726130829127,-250.0,0.00016057,2]
[337815195,1726130829150,-250.0,0.00016099,2]
[337815196,1726130829173,-250.0,0.00016141,2]
[337815197,1726130829194,-250.0,0.00016184,2]
[337815198,1726130829216,-408.2740538,0.00016218,2]
[337815199,1726130844111,-381.25961652,0.00016218,2]
[337815200,1726130850104,-225.94447373,0.00016218,2]
[337815201,1726130853092,-1417.00429939,0.00016218,2]
[337815202,1726130945997,692.98557165,0.00015312,2]
[337815203,1726130946021,24207.01442835,0.00015312,2]
[337815204,1726130962118,-1000.0,0.00016218,2]
[337815205,1726130962142,-250.0,0.00016226,2]
[337815206,1726130973646,1000.0,0.00016218,2]
[337815207,1726130998833,204.4884,0.00016216,2]
[337815208,1726130998854,993.5436,0.00016216,2]
[337815263,1726131032742,-656.90878816,0.00016118,2]
[337815268,1726131038168,-20583.94300143,0.00016118,2]
[337815269,1726131038181,-2366.05093253,0.00016216,2]
[337815270,1726131038191,-300.0,0.00016307,2]
[337815271,1726131038202,-300.0,0.00016307,2]
[337815272,1726131038213,-423.06568258,0.00016307,2]
[337815273,1726131038225,-25348.9721454,0.00016308,2]
[337815274,1726131038238,-60349.5704882,0.00016308,2]
[337815275,1726131038251,-570.8751554,0.00016317,2]
[337815276,1726131038263,-170.111617,0.00016317,2]
[337815277,1726131038278,-500.0,0.00016317,2]
[337815278,1726131038290,-500.0,0.00016317,2]
[337815279,1726131038303,-500.0,0.00016317,2]
[337815280,1726131038316,-500.0,0.00016317,2]
[337815281,1726131038328,-500.0,0.00016317,2]
[337815282,1726131038341,-212.710326,0.00016317,2]
[337815283,1726131038352,-503.78945339,0.00016317,2]
[337815284,1726131038363,-500.0,0.00016317,2]
[337815285,1726131038373,-500.0,0.00016317,2]
[337815286,1726131038384,-500.0,0.00016317,2]
[337815287,1726131038395,-209.25142266,0.00016317,2]
[337815288,1726131038407,-500.0,0.00016317,2]
[337815289,1726131038420,-500.0,0.00016317,2]
[337815290,1726131038432,-500.0,0.00016317,2]
[337815291,1726131038444,-500.0,0.00016317,2]
[337815292,1726131038454,-500.0,0.00016317,2]
[337815293,1726131038467,-500.0,0.00016317,2]
[337815294,1726131038480,-500.0,0.00016317,2]
[337815295,1726131038492,-500.0,0.00016317,2]
[337815296,1726131038504,-500.0,0.00016317,2]
[337815297,1726131038515,-400.0,0.00016317,2]
[337815298,1726131038526,-500.0,0.00016317,2]
[337815299,1726131038536,-500.0,0.00016317,2]
[337815300,1726131038547,-500.0,0.00016317,2]
[337815301,1726131038559,-500.0,0.00016317,2]
[337815302,1726131038569,-247.94227813,0.00016317,2]
[337815303,1726131038583,-609.05135176,0.00016317,2]
[337815304,1726131038595,-500.0,0.00016317,2]
[337815305,1726131038606,-206.44133664,0.00016317,2]
[337815306,1726131038618,-101395.888582,0.00016318,2]
[337815307,1726131038630,-15165.22923172,0.00016318,2]
[337815308,1726131038644,-1679.99999971,0.00016318,2]
[337815309,1726131038658,-3092.2934225,0.00016318,2]
[337815310,1726131038683,-221460.75929907,0.00016318,2]
[337815311,1726131038694,-187428.85919453,0.00016328,2]
[337815312,1726131038705,-2113.63422463,0.00016338,2]
[337815313,1726131038716,-165.27938832,0.00016338,2]
[337815314,1726131038728,-500.0,0.00016373,2]
[337815315,1726131038740,-500.0,0.00016373,2]
[337815316,1726131038751,-162.26995318,0.00016373,2]
[337815317,1726131038762,-500.73304746,0.00016373,2]
[337815318,1726131038775,-500.0,0.00016373,2]
[337815319,1726131038787,-204.7149174,0.00016373,2]
[337815320,1726131038799,-500.0,0.00016373,2]
[337815321,1726131038810,-500.0,0.00016373,2]
[337815322,1726131038822,-500.0,0.00016373,2]
[337815323,1726131038834,-278.22610637,0.00016373,2]
[337815324,1726131038846,-500.0,0.00016373,2]
[337815325,1726131038856,-200.73603317,0.00016373,2]
[337815326,1726131038867,-500.0,0.00016373,2]
[337815327,1726131038878,-500.0,0.00016373,2]
[337815328,1726131038888,-500.0,0.00016373,2]
[337815329,1726131038902,-374.58851612,0.00016373,2]
[337815330,1726131038913,-501.86387629,0.00016373,2]
[337815331,1726131038924,-500.0,0.00016373,2]
[337815332,1726131038935,-500.0,0.00016373,2]
[337815333,1726131038946,-50697.9442908,0.0001638,2]
[337815334,1726131038957,-120699.140976,0.0001638,2]
[337815335,1726131038968,-50697.9442908,0.0001639,2]
[337815336,1726131038979,-120177.06,0.000164,2]
[337815337,1726131038993,-150.112233,0.000164,2]
[337815338,1726131039004,-150.112233,0.000164,2]
[337815339,1726131039015,-150.112233,0.000164,2]
[337815340,1726131039026,-500.0,0.00016438,2]
[337815341,1726131039037,-500.0,0.00016438,2]
[337815342,1726131039047,-500.0,0.00016438,2]
[337815343,1726131039058,-500.0,0.00016438,2]
[337815344,1726131039070,-500.0,0.00016438,2]
[337815345,1726131039082,-500.0,0.00016438,2]
[337815346,1726131039097,-500.0,0.00016438,2]
[337815347,1726131039110,-500.0,0.00016438,2]
[337815348,1726131039122,-500.0,0.00016438,2]
[337815349,1726131039134,-500.0,0.00016438,2]
[337815350,1726131039146,-500.0,0.00016438,2]
[337815351,1726131039157,-619.80936869,0.00016438,2]
[337815352,1726131039169,-500.0,0.00016438,2]
[337815353,1726131039180,-170.53035797,0.00016438,2]
[337815354,1726131039192,-500.0,0.00016438,2]
[337815355,1726131039204,-500.0,0.00016438,2]
[337815356,1726131039216,-500.0,0.00016438,2]
[337815357,1726131039227,-513.67154487,0.00016438,2]
[337815358,1726131039238,-523.91519448,0.00016438,2]
[337815359,1726131039250,-500.0,0.00016438,2]
[337815360,1726131039262,-503.09148678,0.00016438,2]
[337815361,1726131039274,-500.0,0.00016438,2]
[337815362,1726131039285,-500.97902861,0.00016438,2]
[337815363,1726131039296,-500.0,0.00016438,2]
[337815364,1726131039307,-500.0,0.00016438,2]
[337815365,1726131039318,-500.0,0.00016438,2]
[337815366,1726131039329,-500.0,0.00016438,2]
[337815367,1726131039340,-500.0,0.00016438,2]
[337815368,1726131039350,-500.0,0.00016438,2]
[337815369,1726131039361,-163.50643596,0.00016438,2]
[337815370,1726131039372,-500.0,0.00016438,2]
[337815371,1726131039383,-500.0,0.00016438,2]
[337815372,1726131039394,-500.0,0.00016438,2]
[337815373,1726131039405,-500.0,0.00016438,2]
[337815374,1726131039416,-500.0,0.00016438,2]
[337815375,1726131039427,-500.0,0.00016438,2]
[337815376,1726131039439,-500.0,0.00016438,2]
[337815377,1726131039450,-500.0,0.00016438,2]
[337815378,1726131039461,-500.0,0.00016438,2]
[337815379,1726131039472,-500.0,0.00016438,2]
[337815380,1726131039483,-500.0,0.00016438,2]
[337815381,1726131039497,-500.0,0.00016438,2]
[337815382,1726131039508,-500.0,0.00016438,2]
[337815383,1726131039518,-500.0,0.00016438,2]
[337815384,1726131039530,-500.0,0.00016438,2]
[337815385,1726131039542,-500.0,0.00016438,2]
[337815386,1726131039553,-500.0,0.00016438,2]
[337815387,1726131039565,-500.0,0.00016438,2]
[337815388,1726131039577,-505.1746982,0.00016438,2]
[337815389,1726131039588,-501.09234576,0.00016438,2]
[337815390,1726131039600,-500.0,0.00016438,2]
[337815391,1726131039611,-500.0,0.00016438,2]
[337815392,1726131039623,-500.0,0.00016438,2]
[337815393,1726131039635,-500.0,0.00016438,2]
[337815394,1726131039646,-500.0,0.00016438,2]
[337815395,1726131039656,-500.0,0.00016438,2]
[337815396,1726131039667,-500.0,0.00016438,2]
[337815398,1726131039678,-500.0,0.00016438,2]
[337815400,1726131039689,-587.1339477,0.00016438,2]
[337815401,1726131039699,-500.0,0.00016438,2]
[337815402,1726131039711,-500.0,0.00016438,2]
[337815403,1726131039723,-200.0,0.00016438,2]
[337815404,1726131039734,-614.29,0.00016438,2]
[337815405,1726131039746,-500.0,0.00016438,2]
[337815406,1726131039757,-500.0,0.00016438,2]
[337815407,1726131039768,-500.0,0.00016438,2]
[337815408,1726131039779,-503.77939374,0.00016438,2]
[337815409,1726131039790,-500.0,0.00016438,2]
[337815410,1726131039801,-178.01214032,0.00016438,2]
[337815411,1726131039812,-500.0,0.00016438,2]
[337815412,1726131039822,-500.0,0.00016438,2]
[337815413,1726131039834,-500.0,0.00016438,2]
[337815414,1726131039845,-500.0,0.00016438,2]
[337815415,1726131039855,-500.0,0.00016438,2]
[337815416,1726131039864,-500.0,0.00016438,2]
[337815417,1726131039874,-500.0,0.00016438,2]
[337815418,1726131039884,-500.0,0.00016438,2]
[337815419,1726131039894,-500.0,0.00016438,2]
[337815420,1726131039904,-500.0,0.00016438,2]
[337815421,1726131039913,-500.0,0.00016438,2]
[337815422,1726131039923,-500.0,0.00016438,2]
[337815423,1726131039933,-536.87,0.00016438,2]
[337815424,1726131039943,-500.0,0.00016438,2]
[337815425,1726131039952,-500.0,0.00016438,2]
[337815426,1726131039962,-500.0,0.00016438,2]
[337815427,1726131039971,-500.0,0.00016438,2]
[337815428,1726131039982,-500.0,0.00016438,2]
[337815429,1726131039992,-500.0,0.00016438,2]
[337815430,1726131040001,-500.0,0.00016438,2]
[337815431,1726131040271,-508.17777301,0.00016438,2]
[337815432,1726131040291,-500.0,0.00016438,2]
[337815433,1726131040301,-503.58237892,0.00016438,2]
[337815434,1726131040310,-500.0,0.00016438,2]
[337815435,1726131040320,-500.0,0.00016438,2]
[337815436,1726131040330,-527.84608972,0.00016438,2]
[337815437,1726131040339,-503.25658566,0.00016438,2]
[337815438,1726131040348,-500.0,0.00016438,2]
[337815439,1726131040358,-500.0,0.00016438,2]
[337815440,1726131040367,-500.0,0.00016438,2]
[337815441,1726131040376,-500.0,0.00016438,2]
[337815442,1726131040386,-500.0,0.00016438,2]
[337815443,1726131040396,-500.0,0.00016438,2]
[337815444,1726131040405,-817.17,0.00016438,2]
[337815445,1726131040415,-500.0,0.00016438,2]
[337815446,1726131040424,-500.0,0.00016438,2]
[337815447,1726131040434,-500.0,0.00016438,2]
[337815448,1726131040443,-500.0,0.00016438,2]
[337815449,1726131040452,-500.0,0.00016438,2]
[337815450,1726131040461,-500.0,0.00016438,2]
[337815451,1726131040470,-500.0,0.00016438,2]
[337815452,1726131040480,-500.0,0.00016438,2]
[337815453,1726131040490,-500.0,0.00016438,2]
[337815454,1726131040501,-500.0,0.00016438,2]
[337815455,1726131040510,-518.51000873,0.00016438,2]
[337815456,1726131040519,-500.0,0.00016438,2]
[337815457,1726131040528,-210.10429094,0.00016438,2]
[337815458,1726131040537,-500.0,0.00016438,2]
[337815459,1726131040547,-500.0,0.00016438,2]
[337815460,1726131040556,-596.27,0.00016438,2]
[337815461,1726131040565,-460.02930121,0.00016438,2]
[337815462,1726131040574,-500.0,0.00016438,2]
[337815463,1726131040583,-500.0,0.00016438,2]
[337815464,1726131040593,-500.0,0.00016438,2]
[337815465,1726131040602,-500.0,0.00016438,2]
[337815466,1726131040611,-500.0,0.00016438,2]
[337815467,1726131040621,-500.0,0.00016438,2]
[337815468,1726131040630,-500.0,0.00016438,2]
[337815469,1726131040639,-151.05,0.00016438,2]
[337815470,1726131040649,-500.0,0.00016438,2]
[337815471,1726131040658,-500.0,0.00016438,2]
[337815472,1726131040669,-500.0,0.00016438,2]
[337815473,1726131040678,-500.0,0.00016438,2]
[337815474,1726131040689,-500.0,0.00016438,2]
[337815475,1726131040699,-500.0,0.00016438,2]
[337815476,1726131040708,-495.63899007,0.00016438,2]
[337815477,1726131040720,-500.0,0.00016438,2]
[337815478,1726131040731,-500.0,0.00016438,2]
[337815479,1726131040741,-565.82764609,0.00016438,2]
[337815480,1726131040752,-500.0,0.00016438,2]
[337815481,1726131040762,-500.0,0.00016438,2]
[337815482,1726131040772,-500.0,0.00016438,2]
[337815483,1726131040782,-500.0,0.00016438,2]
[337815484,1726131040792,-501.91094958,0.00016438,2]
[337815485,1726131040802,-500.0,0.00016438,2]
[337815486,1726131040813,-500.0,0.00016438,2]
[337815487,1726131040825,-500.0,0.00016438,2]
[337815488,1726131040834,-500.0,0.00016438,2]
[337815489,1726131040844,-617.64,0.00016438,2]
[337815490,1726131040854,-500.0,0.00016438,2]
[337815491,1726131040864,-500.0,0.00016438,2]
[337815492,1726131040873,-500.0,0.00016438,2]
[337815493,1726131040883,-500.0,0.00016438,2]
[337815494,1726131040893,-1279.9,0.00016438,2]
[337815495,1726131040903,-500.0,0.00016438,2]
[337815496,1726131040912,-500.0,0.00016438,2]
[337815497,1726131040921,-500.0,0.00016438,2]
[337815498,1726131040931,-500.0,0.00016438,2]
[337815499,1726131040941,-500.0,0.00016438,2]
[337815500,1726131040950,-500.0,0.00016438,2]
[337815501,1726131040962,-500.0,0.00016438,2]
[337815502,1726131040971,-500.0,0.00016438,2]
[337815503,1726131040981,-536.14825483,0.00016438,2]
[337815504,1726131040992,-500.0,0.00016438,2]
[337815505,1726131041003,-500.0,0.00016438,2]
[337815506,1726131041013,-793.33,0.00016438,2]
[337815507,1726131041023,-500.0,0.00016438,2]
[337815508,1726131041034,-500.0,0.00016438,2]
[337815509,1726131041045,-500.0,0.00016438,2]
[337815510,1726131041055,-500.0,0.00016438,2]
[337815511,1726131041066,-500.0,0.00016438,2]
[337815512,1726131041078,-500.0,0.00016438,2]
[337815513,1726131041089,-500.0,0.00016438,2]
[337815514,1726131041103,-500.0,0.00016438,2]
[337815515,1726131041113,-500.0,0.00016438,2]
[337815516,1726131041126,-500.0,0.00016438,2]
[337815517,1726131041137,-500.0,0.00016438,2]
[337815518,1726131041146,-500.0,0.00016438,2]
[337815519,1726131041157,-502.25341862,0.00016438,2]
[337815520,1726131041168,-500.0,0.00016438,2]
[337815521,1726131041180,-500.0,0.00016438,2]
[337815522,1726131041189,-500.0,0.00016438,2]
[337815523,1726131041199,-500.0,0.00016438,2]
[337815524,1726131041208,-500.0,0.00016438,2]
[337815525,1726131041218,-500.0,0.00016438,2]
[337815526,1726131041228,-500.0,0.00016438,2]
[337815527,1726131041238,-500.0,0.00016438,2]